Cogmind - Beta 13 @@@ ROGUE MODE // 2024.04.10 @ 09:31:15 Player: Zaz Result: Destroyed by G-47 Trooper with Particle Gun Performance ------------- Evolutions (0) 0 Regions Visited (2) 400 Robots Destroyed (16) 80 Value Destroyed (299) 299 Prototype IDs (0) 0 Alien Tech Used (0) 0 Bonus (0) 0 TOTAL SCORE: 779 Bonus ------- None Cogmind --------- Core Integrity 0/250 Matter 274/300 Energy 88/100 System Corruption 0% Temperature Hot (272) Movement Rolling (200) Ox8 Location -10/Mines Parts ------- > --- POWER (1) -------- (None) > --- PROPULSION (2) --- Wheel > --- UTILITY (2) ------ Huge Storage Unit Seismic Detector > --- WEAPON (2) ------- Beam Cannon Autogun > --- INVENTORY (25) --- Light Ion Engine Light Treads Light Treads Light Treads Light Treads Aluminum Leg Aluminum Leg Wheel Heat Sink Medium Storage Unit Large Storage Unit Large Battery (200) Particle Gun Beam Cannon Beam Cannon Beam Cannon Assault Rifle Assault Rifle Light Assault Rifle Autogun Autogun Autogun Light Cannon Peak State ------------ > --- POWER ------------ Ion Engine > --- PROPULSION ------- Wheel Wheel > --- UTILITY ---------- Huge Storage Unit Seismic Detector > --- WEAPON ----------- Beam Cannon Autogun > --- INVENTORY -------- Light Ion Engine Light Treads Light Treads Light Treads Aluminum Leg Aluminum Leg Wheel Heat Sink Medium Storage Unit Large Storage Unit Beam Cannon Beam Cannon Beam Cannon Assault Rifle Assault Rifle Light Assault Rifle Autogun Autogun [Rating: 10] Favorites ----------- Power Ion Engine Engine Ion Engine Propulsion Wheel Treads Light Treads Wheel Wheel Utility Seismic Detector Device Seismic Detector Storage Huge Storage Unit Weapon Beam Cannon Energy Cannon Beam Cannon Ballistic Gun Assault Rifle Build | -11 -10 -10 ------- Run | Yrd Mat Min Slots Evolved . | . . . Power . | . . . Propulsion . | . . . Utility . | . . . Weapon . | . . . Parts Attached 23 | 7 16 . Power 2 | 1 1 . Engine 2 | 1 1 . Core . | . . . Reactor . | . . . Propulsion 8 | 2 6 . Treads 2 | . 2 . Leg . | . . . Wheel 6 | 2 4 . Hover . | . . . Flight . | . . . Utility 5 | 2 3 . Device 1 | 1 . . Storage 4 | 1 3 . Processor . | . . . Hackware . | . . . Protection . | . . . Artifact . | . . . Weapon 8 | 2 6 . Energy Gun . | . . . Energy Cannon 2 | . 2 . Ballistic Gun 6 | 2 4 . Ballistic Cannon . | . . . Launcher . | . . . Special Weapon . | . . . Impact Weapon . | . . . Slashing Weapon . | . . . Piercing Weapon . | . . . Special Melee Weapon . | . . . Unidentified Prototypes . | . . . Parts Lost 3 | . 1 2 Power 1 | . . 1 Propulsion 2 | . 1 1 Utility . | . . . Weapon . | . . . Highest Loss Streak 2 | . 1 2 To Critical Strikes . | . . . Average Slot Usage (%) 99 | . 99 96 Engine 13 | . 14 11 Wheel 27 | . 27 26 Device 14 | . 14 14 Storage 14 | . 14 14 Energy Cannon 12 | . 11 14 Ballistic Gun 15 | . 16 14 Naked Turns . | . . . Heaviest Build 92 | 14 92 92 Greatest Support 40 | 20 40 20 Greatest Overweight (x) 9 | . 9 4 Average Overweight (x) 2 | . 2 4 Largest Inventory Capacity 25 | 8 25 25 Average Capacity 19 | 7 20 25 Most Carried 23 | 6 22 23 Average Carried 16 | 3 16 22 Final Capacity 25 | 8 25 25 Final Carried 23 | 6 22 23 Class Distribution -------------------- 100% | Mutant Dominant Class ---------------- Mutant | -10/Materials Mutant | -10/Mines Resources | -11 -10 -10 ----------- Run | Yrd Mat Min Matter Collected 572 | 223 349 . Remotely . | . . . Salvage Created 506 | 19 447 40 Parts 34 | 2 31 1 Haulers Intercepted 2 | . 2 . Recyclers Shooed . | . . . Parts Field Recycled . | . . . Retrieved Matter . | . . . Parts Self-Destructed . | . . . Prevented . | . . . Kills | -11 -10 -10 ------- Run | Yrd Mat Min Combat Hostiles Destroyed 11 | . 10 1 Guns 4 | . 4 . Cannons 7 | . 6 1 Classes Destroyed 6 | 1 5 . Builder 1 | . 1 . Tunneler 1 | 1 . . Hauler 2 | . 2 . Watcher 1 | . 1 . Swarmer 5 | . 5 . Grunt 6 | . 5 1 Best Kill Streak 3 | 1 3 1 Combat Bots Only 3 | . 3 1 Max Kills in Single Turn 2 | 1 2 1 Gunslinging 1 | . 1 . Exploded . | . . . Melee . | . . . Uniques/NPCs Destroyed . | . . . Combat | -11 -10 -10 -------- Run | Yrd Mat Min Hostile Shots Fired 71 | . 50 21 Missed 17 | . 15 2 Damage Taken 711 | . 440 271 Core 253 | . 111 142 Absorbed by Shields . | . . . Core Remaining (%) 100 | 100 . . Volleys Fired 50 | 2 39 9 Largest 2 | 2 2 2 Hottest 83 | 40 83 83 Shots Fired 100 | 4 78 18 Gun 59 | 4 46 9 Cannon 41 | . 32 9 Launcher . | . . . Special . | . . . Kinetic 59 | 4 46 9 Thermal 41 | . 32 9 Explosive . | . . . Electromagnetic . | . . . Robot Hit Streak 13 | 3 13 5 Robot Miss Streak 3 | . 3 2 Penetration Max . | . . . Secondary Targets 1 | . 1 . Max Gunslinging Chain 1 | . 1 . Shots Hit Robots 65 | 3 49 13 Core Hits 19 | 1 16 2 Critical Kills . | . . . Critical Parts Destroyed . | . . . Critical Strikes . | . . . Melee Attacks . | . . . Impact . | . . . Slashing . | . . . Piercing . | . . . Sneak Attacks . | . . . Combat Hostiles . | . . . Follow-up Attacks . | . . . Damage Inflicted 1002 | 36 755 211 Guns 491 | 36 349 106 Cannons 506 | . 401 105 Explosions . | . . . Melee . | . . . Ramming 5 | . 5 . Kinetic 491 | 36 349 106 Thermal 506 | . 401 105 Explosive . | . . . Electromagnetic . | . . . Impact . | . . . Slashing . | . . . Piercing . | . . . Highest Corruption . | . . . Average Corruption . | . . . Corruption Purged . | . . . Corruption Blocked . | . . . Overload Shots . | . . . Overflow Damage 7 | . 7 . Projectiles 7 | . 7 . Explosions . | . . . Melee . | . . . Knockbacks . | . . . Impact . | . . . Kinetic . | . . . Secondary . | . . . Self-Inflicted Damage 2 | . 2 . Shots . | . . . Rammed 2 | . 2 . Targets Rammed 2 | . 2 . Kicked . | . . . Crushed . | . . . Highest Temperature 263 | . 207 263 Average Temperature 84 | . 71 148 Received Heat Transfer 300 | . 123 177 Siege Activations . | . . . Robots Corrupted . | . . . Combat Hostiles . | . . . Parts Fried . | . . . Impact Corruptions . | . . . Robots Melted . | . . . Combat Hostiles . | . . . Parts Melted 1 | . 1 . Heat Transferred 1073 | . 851 222 Parts Sabotaged . | . . . Parts Stolen . | . . . Parts Stripped . | . . . Power Chain Reactions . | . . . Alert | -11 -10 -10 ------- Run | Yrd Mat Min Peak Influence 196 | 5 196 20 Initial 3 | . 3 . Average 49 | 2 57 1 Maximum Alert Level . | . . . Low Security (%) 100 | 100 100 100 Level 1 . | . . . Level 2 . | . . . Level 3 . | . . . Level 4 . | . . . Level 5 . | . . . High Security . | . . . Max Security . | . . . Squads Dispatched 2 | . 2 . Investigation 1 | . 1 . Extermination . | . . . Reinforcement 1 | . 1 . Assault . | . . . Garrison . | . . . Intercept . | . . . Searches Triggered . | . . . Construction Impeded . | . . . Haulers Reinforced . | . . . Active Scanning Responses . | . . . Cargo Convoy Interrupts . | . . . Stealth | -11 -10 -10 --------- Run | Yrd Mat Min Distress Signals 1 | . 1 . Communications Jammed . | . . . Distress Signals . | . . . Times Spotted 28 | . 26 2 Peak Tracking Total 4 | . 4 2 Tactical Retreats 4 | . 4 . Traps | -11 -10 -10 ------- Run | Yrd Mat Min Traps Triggered 3 | . 3 . Indirectly . | . . . Trap Hack Attempts . | . . . Triggered . | . . . Disarmed . | . . . Reprogrammed . | . . . Reused . | . . . Traps Extracted . | . . . Installed . | . . . Triggered . | . . . Machines | -11 -10 -10 ---------- Run | Yrd Mat Min Machines Disabled . | . . . Max in Single Turn . | . . . Machines Repaired . | . . . Machines Dismantled . | . . . Machines Sabotaged . | . . . Overloaded Fab Kills . | . . . Hacking | -11 -10 -10 --------- Run | Yrd Mat Min Machines Accessed 1 | . 1 . Terminals 1 | . 1 . Fabricators . | . . . Repair Stations . | . . . Recycling Units . | . . . Scanalyzers . | . . . Garrison Access . | . . . Total Hacks 2 | . 2 . Successful 1 | . 1 . Failed 1 | . 1 . Catastrophic . | . . . Database Lockouts . | . . . Manual 2 | . 2 . Terminals 2 | . 2 . Fabricators . | . . . Repair Stations . | . . . Recycling Units . | . . . Scanalyzers . | . . . Garrison Access . | . . . Terminal Hacks . | . . . Fabricator Hacks . | . . . Repair Station Hacks . | . . . Recycling Unit Hacks . | . . . Scanalyzer . | . . . Garrison Access Hacks . | . . . Unauthorized Hacks 1 | . 1 . Terminals 1 | . 1 . Operators 1 | . 1 . Fabricators . | . . . Repair Stations . | . . . Recycling Units . | . . . Scanalyzers . | . . . Garrison Access . | . . . Data Cores Recovered . | . . . Used . | . . . Hacking Detections 1 | . 1 . Full Trace Events . | . . . Feedback Events . | . . . Feedback Blocked . | . . . Robot Schematics Acquired . | . . . Robots Built . | . . . Authchips . | . . . Time . | . . . Total Robot Build Rating . | . . . Part Schematics Acquired . | . . . Parts Built . | . . . Authchips . | . . . Time . | . . . Total Part Build Rating . | . . . Parts Repaired . | . . . Time . | . . . Parts Recycled . | . . . Recycled Matter . | . . . Retrieved Matter . | . . . Retrieved Components . | . . . Parts Scanalyzed . | . . . Part Schematics Acquired . | . . . Parts Damaged . | . . . Bothacking | -11 -10 -10 ------------ Run | Yrd Mat Min Used RIF Installer . | . . . Robots Hacked . | . . . Non-combat . | . . . Combat . | . . . Robot Hacks Applied . | . . . Relay Couplers Released . | . . . Fabnet Peak Effective % . | . . . Robots Rewired . | . . . Allies Hacked . | . . . Hacks Repelled . | . . . Allies | -11 -10 -10 -------- Run | Yrd Mat Min Total Allies . | . . . Largest Group . | . . . Highest-Rated Group . | . . . Highest-Rated Ally . | . . . Total Orders . | . . . Ally Attacks . | . . . Total Damage . | . . . Kills . | . . . Allies Corrupted . | . . . Allies Melted . | . . . Intel | -11 -10 -10 ------- Run | Yrd Mat Min Robot Analysis Total . | . . . Derelict Logs Recovered . | . . . Drone Launches . | . . . Drone Recoveries . | . . . Exploration | -11 -10 -10 ------------- Run | Yrd Mat Min Turns Passed 1404 | 71 1201 132 Spaces Moved 835 | 62 700 73 Core 1 | 1 . . Treads 6 | . 6 . Legs . | . . . Wheels 828 | 61 694 73 Hover . | . . . Flight . | . . . Fastest Speed 50 | 50 80 140 Average Speed 114 | 79 114 140 Slowest Speed 215 | 80 215 140 Overloaded Moves . | . . . Propulsion Burnouts . | . . . Robots Hopped . | . . . Cave-ins Triggered . | . . . Exploration Rate (%) 40 | 4 97 19 Regions Visited 2 Branch Regions 1 Pre-discovered Areas . | . . . Known Exits Taken . | . . . Unknown Exits Taken 2 | 1 1 . Scrap Searched . | . . . Spaces Dug . | . . . Terrain Destroyed . | . . . Melee . | . . . Projectile . | . . . AOE . | . . . Terrain Rammed . | . . . Walls Destroyed . | . . . Machines Disabled . | . . . Actions | -11 -10 -10 --------- Run | Yrd Mat Min Total 1182 | 76 1019 87 Wait 249 | . 245 4 Move 833 | 61 699 73 Hop . | . . . Pick Up 22 | 6 15 1 Fast Attach 11 | 7 4 . Attach 1 | . 1 . Detach . | . . . Swap 11 | . 11 . Drop 3 | . 3 . Fire 50 | 2 39 9 Melee . | . . . Ram 2 | . 2 . Kick . | . . . Crush . | . . . Escape Stasis . | . . . Rewire . | . . . Trap . | . . . Miscellaneous . | . . . Route ------- -11/Scrapyard -10/Materials (discovered 5 exits: [*Mat x3] / [*Min x2]) -10/Mines History --------- Turn | Location | Event 29 | -11/Scrapyard | Discovered new exit (range 16) 72 | -11/Scrapyard | Entered Materials 208 | -10/Materials | Discovered new exit (range 9) 300 | -10/Materials | Build established: Mutant 577 | -10/Materials | Discovered new exit (range 12) 600 | -10/Materials | Derelicts attacked the area 771 | -10/Materials | Discovered new exit (range 16) 1096 | -10/Materials | Discovered new exit (range 7) 1191 | -10/Materials | Discovered new exit (range 6) 1273 | -10/Materials | Entered Mines 1276 | -10/Mines | Met a Derelict bent on vengeance 1354 | -10/Mines | Core integrity fell below 50% 1386 | -10/Mines | Core integrity fell below 20% 1405 | -10/Mines | Destroyed by G-47 Trooper with Particle Gun Last Messages --------------- 01108_ Triggered Blade Trap. 01108_ Massive razor-sharp blades shoot up from within the floor. 01108_ Wheel severed. 01108_ Autogun severed. 01110_ Acquired Wheel. 01113_ Acquired Autogun. 01132_ Acquired 12 matter. 01134_ Acquired 8 matter. 01146_ Acquired Lgt. Treads. 01191_ EXIT=FOUND LOCATION=UNKNOWN GOAL=ESCAPE 01332_ 8K-QVW(g): "VENGEANCE!" 01332_ Acquired Particle Gun. 01367_ 8K-QVW(g) destroyed. 01385_ G-34 Mercenary destroyed. 01387_ Ion Engine destroyed. 01395_ R-06 Scavenger collects Aluminum Leg. 01399_ Wheel destroyed. 01403_ Critical hit (Burn: +37). Map ----- +----------------------------------------------------+ | ????????????????????????????????????????? | | ????????????????????????????????????????? | | ????????????????????????????????????????? | | ???????????????????????#????????????????? | | ??????????????????????? #???????????????? | | ??????????????????????? ???????????????? | | ???????????????????????? #??????????????? | | ???????????????????????? #?????????????? | | ???????????????????????? ?????????????? | | ???????????????????????? ?????????????? | | ???????????????????????? ?????????????? | | ???????????????????????? ???##????????? | | ????????????????????????# #?? ?????????? | | ??????????????????#####?# ## #??????????? | | ??????????????????# #?# ????????????? | | ?????????????????## ??# #?????????????? | | ????????????????## ???# #?????????????? | | ???????????????## #??## ##????????????? | | ???????????????# #### ##???????????? | | ???????????????# %! ##??????????? | | ??????????????## #*# ##?????????? | | ?????????????## ## ##% ##????????? | | ????????????## ### ###% ###??????? | | ##???????#### #?# #?# % ##?????? | | #?????### #?# ### #?????? | | #????## ##?# g@ #?????? | | ###### #??#### #?????? | | ##?????# ## #?????? | | #####??????## ##?# #?????? | | ######### ##???????????####???# ##?????? | | ????????####????????????????????##??????? | | ????????????????????????????????????????? | | | | | | | | | | | | | | | | | | | | | | | | | | | | | | | | | | | | | +----------------------------------------------------+ Best States ------------- Heat Dissipation 25 Energy Generation 10 Energy Capacity 250 Matter Stores 300 Matter Capacity 300 Sight Range 16 Terrain Scan Density 10 Evasion (%) 44 Recoil Reduction 2 Item Schematics ----------------- None Robot Schematics ------------------ None Fabricated ------------ Nothing Alien Tech Used ----------------- None Achievements -------------- None Challenges ------------ None Game ------ Seed ColdRecoilSabre Manual? 0 Play Time 00:13:51 Cumulative 33.0 hours Start 2024.04.10 @ 09:16:56 End 2024.04.10 @ 09:31:15 Sessions 1 Manual Loads 0 Difficulty Rogue Special Mode None Game No. 27 Rogue 27 Adventurer 0 Explorer 0 Win Type - Total 1 Types 1/0/0/0/0/0/0/0/0 Lore% 24 Gallery% 37 Achievement% 34 Wizard Run 0 Options --------- Layout 0 ASCII 0 Keyboard 0 Movement Mouse Keybinds 0 Fullscreen 2 Font 20/SmallcapsGlow Map View 140x60 Zoom Use 0% Tactical HUD 1 Map Filters NONE Filters NONE Steam 1 RUN: 00671530-bcdf-4875-aaf6-b940ed1a112b